[Event "NJSK 2026 Jeugd C"]
[Site "Helmond, Netherlands"]
[Date "2026.04.27"]
[Round "4.12"]
[White "Fu, Ziqing"]
[Black "Roersma, Dylan"]
[Result "1-0"]
[TimeControl "90min/40moves + 30sec/move"]
[WhiteTitle "-"]
[BlackTitle "-"]
[WhiteFideId "40109623"]
[BlackFideId "1097393"]
[WhiteElo "1810"]
[BlackElo "1846"]

1. e4 {[%clk 01:29:57]} {[%emt 00:01:03]} c5 {[%clk 01:30:36]} {[%emt
00:00:24]} 2. Nf3 {[%clk 01:28:58]} {[%emt 00:01:30]} Nc6 {[%clk 01:30:58]}
{[%emt 00:00:08]} 3. d4 {[%clk 01:28:36]} {[%emt 00:00:51]} cxd4 {[%clk
01:31:20]} {[%emt 00:00:08]} 4. Nxd4 {[%clk 01:27:51]} {[%emt 00:01:15]} e5
{[%clk 01:31:36]} {[%emt 00:00:14]} 5. Nb5 {[%clk 01:26:48]} {[%emt 00:01:31]}
d6 {[%clk 01:28:51]} {[%emt 00:03:18]} 6. N1c3 {[%clk 01:26:43]} {[%emt
00:00:34]} a6 {[%clk 01:29:17]} {[%emt 00:00:04]} 7. Na3 {[%clk 01:25:57]}
{[%emt 00:01:16]} b5 {[%clk 01:29:43]} {[%emt 00:00:05]} 8. Nd5 {[%clk
01:24:55]} {[%emt 00:01:29]} Nf6 {[%clk 01:29:27]} {[%emt 00:00:47]} 9. Bg5
{[%clk 01:24:44]} {[%emt 00:00:42]} Be7 {[%clk 01:29:05]} {[%emt 00:00:52]} 10.
Bxf6 {[%clk 01:24:26]} {[%emt 00:00:48]} Bxf6 {[%clk 01:29:18]} {[%emt
00:00:16]} 11. Bd3 {[%clk 01:23:58]} {[%emt 00:00:58]} Be6 {[%clk 01:28:22]}
{[%emt 00:01:26]} 12. c4 {[%clk 01:23:04]} {[%emt 00:01:24]} b4 {[%clk
01:24:29]} {[%emt 00:04:24]} 13. Nc2 {[%clk 01:23:10]} {[%emt 00:00:24]} a5
{[%clk 01:21:04]} {[%emt 00:03:56]} 14. O-O {[%clk 01:22:58]} {[%emt 00:00:40]}
Bg5 {[%clk 01:19:54]} {[%emt 00:01:40]} 15. Be2 {[%clk 01:20:54]} {[%emt
00:02:35]} O-O {[%clk 01:11:36]} {[%emt 00:08:48]} 16. Bg4 {[%clk 01:20:34]}
{[%emt 00:00:49]} Rb8 {[%clk 01:10:54]} {[%emt 00:01:14]} 17. b3 {[%clk
01:20:27]} {[%emt 00:00:37]} Qd7 {[%clk 01:09:33]} {[%emt 00:01:50]} 18. Bxe6
{[%clk 01:18:18]} {[%emt 00:02:40]} fxe6 {[%clk 01:09:27]} {[%emt 00:00:36]} 19.
Nde3 {[%clk 01:18:22]} {[%emt 00:00:25]} Nd4 {[%clk 00:51:46]} {[%emt
00:18:11]} 20. Qd3 {[%clk 01:17:47]} {[%emt 00:01:05]} h5 {[%clk 00:33:45]}
{[%emt 00:18:32]} 21. Rad1 {[%clk 01:17:51]} {[%emt 00:00:24]} Bf6 {[%clk
00:33:47]} {[%emt 00:00:30]} 22. f4 {[%clk 01:15:57]} {[%emt 00:02:24]} Qa7
{[%clk 00:29:06]} {[%emt 00:05:10]} 23. Kh1 {[%emt 00:06:38]} Qc5 {[%clk
00:20:45]} {[%emt 00:04:39]} 24. f5 {[%clk 01:12:28]} {[%emt 00:02:03]} Nxc2
{[%clk 00:13:47]} {[%emt 00:07:28]} 25. Nxc2 {[%clk 01:12:45]} {[%emt
00:00:13]} exf5 {[%clk 00:10:14]} {[%emt 00:04:03]} 26. Rxf5 {[%clk 01:12:04]}
{[%emt 00:01:11]} g6 {[%clk 00:10:11]} {[%emt 00:00:34]} 27. Rff1 {[%clk
01:12:01]} {[%emt 00:00:32]} Rbd8 {[%clk 00:10:02]} {[%emt 00:00:40]} 28. Ne3
{[%clk 01:11:45]} {[%emt 00:00:45]} Bg5 {[%clk 00:08:45]} {[%emt 00:01:47]} 29.
Nd5 {[%clk 01:11:52]} {[%emt 00:00:22]} Kg7 {[%clk 00:06:54]} {[%emt 00:02:22]}
30. Qg3 {[%clk 01:11:41]} {[%emt 00:00:41]} Bh6 {[%clk 00:05:57]} {[%emt
00:01:28]} 31. Qh4 {[%clk 01:11:25]} {[%emt 00:00:43]} Qa7 {[%clk 00:06:11]}
{[%emt 00:00:18]} 32. Rf6 {[%clk 01:08:23]} {[%emt 00:03:32]} Kh7 {[%clk
00:03:30]} {[%emt 00:03:11]} 33. Re6 {[%clk 01:07:41]} {[%emt 00:01:11]} Qf2
{[%clk 00:02:44]} {[%emt 00:01:17]} 34. Nf6+ {[%clk 01:07:55]} {[%emt
00:00:16]} Rxf6 {[%clk 00:01:34]} {[%emt 00:01:41]} 35. Qxf6 {[%clk 01:06:54]}
{[%emt 00:01:30]} Qxf6 {[%clk 00:01:09]} {[%emt 00:00:55]} 36. Rxf6 {[%clk
01:07:15]} {[%emt 00:00:09]} Bf8 {[%clk 00:01:07]} {[%emt 00:00:33]} 37. Rf7+
{[%clk 01:07:36]} {[%emt 00:00:09]} Kh6 {[%clk 00:00:52]} {[%emt 00:00:43]} 38.
Ra7 {[%clk 01:07:58]} {[%emt 00:00:08]} Kg5 {[%clk 00:00:56]} {[%emt 00:00:27]}
39. Rxa5 {[%clk 01:08:16]} {[%emt 00:00:12]} Kf4 {[%clk 00:01:19]} {[%emt
00:00:08]} 40. Re1 {[%clk 01:08:11]} {[%emt 00:00:34]} g5 {[%clk 00:00:46]}
{[%emt 00:01:04]} 41. Ra7 {[%clk 01:08:23]} {[%emt 00:00:17]} g4 {[%clk
00:01:07]} {[%emt 00:00:10]} 42. Rf7+ {[%clk 01:08:12]} {[%emt 00:00:40]} Kg5
{[%clk 00:01:30]} {[%emt 00:00:07]} 43. Ref1 {[%clk 01:08:30]} {[%emt
00:00:12]} Bh6 {[%clk 00:01:14]} {[%emt 00:00:46]} 44. R7f6 {[%clk 01:08:55]}
{[%emt 00:00:05]} g3 {[%clk 00:01:08]} {[%emt 00:00:37]} 45. R1f5+ {[%clk
01:09:12]} {[%emt 00:00:13]} Kh4 {[%clk 00:01:10]} {[%emt 00:00:27]} 46. Rxh6
{[%clk 01:09:17]} {[%emt 00:00:24]} gxh2 {[%clk 00:01:12]} {[%emt 00:00:30]} 47.
Rhxh5+ {[%clk 01:09:36]} {[%emt 00:00:10]} Kg3 {[%clk 00:01:16]} {[%emt
00:00:27]} 48. Rh3+ {[%clk 01:09:48]} {[%emt 00:00:17]} Kg4 {[%clk 00:01:41]}
{[%emt 00:00:06]} 49. Kxh2 {[%clk 01:10:12]} {[%emt 00:00:06]} Ra8 {[%clk
00:01:50]} {[%emt 00:00:21]} 50. Rg3+ {[%clk 01:10:33]} {[%emt 00:00:08]} Kh4
{[%clk 00:02:15]} {[%emt 00:00:06]} 51. Rfg5 {[%clk 01:10:59]} {[%emt
00:00:04]} d5 {[%clk 00:02:11]} {[%emt 00:00:34]} 52. R3g4# {[%clk 01:11:14]}
{[%emt 00:00:14]} 1-0

[Event "NJSK 2026 Jeugd C"]
[Site "Helmond, Netherlands"]
[Date "2026.04.27"]
[Round "4.13"]
[White "Nguyen, Paul"]
[Black "Mendelsohn, Saffran"]
[Result "1-0"]
[TimeControl "90min/40moves + 30sec/move"]
[WhiteTitle "-"]
[BlackTitle "-"]
[WhiteFideId "1095072"]
[BlackFideId "40108996"]
[WhiteElo "1845"]
[BlackElo "1767"]

1. e4 {[%clk 01:30:58]} {[%emt 00:00:02]} c5 {[%clk 01:30:53]} {[%emt
00:00:08]} 2. Nf3 {[%clk 01:31:23]} {[%emt 00:00:04]} Nc6 {[%clk 01:31:18]}
{[%emt 00:00:06]} 3. d4 {[%clk 01:31:48]} {[%emt 00:00:05]} cxd4 {[%clk
01:31:41]} {[%emt 00:00:07]} 4. Nxd4 {[%clk 01:32:13]} {[%emt 00:00:04]} Nf6
{[%clk 01:31:47]} {[%emt 00:00:25]} 5. Nc3 {[%clk 01:32:35]} {[%emt 00:00:08]}
e5 {[%clk 01:32:11]} {[%emt 00:00:05]} 6. Nxc6 {[%clk 01:32:39]} {[%emt
00:00:27]} bxc6 {[%clk 01:32:31]} {[%emt 00:00:10]} 7. Bc4 {[%clk 01:33:02]}
{[%emt 00:00:07]} Bb4 {[%clk 01:32:34]} {[%emt 00:00:24]} 8. O-O {[%clk
01:32:51]} {[%emt 00:00:44]} O-O {[%clk 01:31:20]} {[%emt 00:01:43]} 9. Qe2
{[%clk 01:31:57]} {[%emt 00:01:25]} Bb7 {[%clk 01:30:31]} {[%emt 00:01:19]} 10.
Rd1 {[%clk 01:30:58]} {[%emt 00:01:29]} h6 {[%clk 01:28:39]} {[%emt 00:02:22]}
11. a3 {[%clk 01:23:50]} {[%emt 00:07:38]} Bxc3 {[%clk 01:28:51]} {[%emt
00:00:18]} 12. bxc3 {[%clk 01:24:14]} {[%emt 00:00:05]} d5 {[%clk 01:28:40]}
{[%emt 00:00:42]} 13. exd5 {[%clk 01:24:30]} {[%emt 00:00:14]} cxd5 {[%clk
01:28:57]} {[%emt 00:00:13]} 14. Qxe5 {[%clk 01:24:39]} {[%emt 00:00:21]} Re8
{[%clk 01:29:02]} {[%emt 00:00:24]} 15. Qg3 {[%clk 01:23:57]} {[%emt 00:01:12]}
Ne4 {[%clk 01:05:43]} {[%emt 00:23:47]} 16. Qf3 {[%clk 01:12:19]} {[%emt
00:12:00]} Qa5 {[%clk 01:01:03]} {[%emt 00:05:21]} 17. Bd3 {[%clk 01:09:56]}
{[%emt 00:02:46]} d4 {[%clk 00:45:02]} {[%emt 00:16:38]} 18. Qg4 {[%clk
00:58:35]} {[%emt 00:11:49]} h5 {[%clk 00:35:28]} {[%emt 00:10:06]} 19. Qd7
{[%clk 00:50:51]} {[%emt 00:08:14]} Nxc3 {[%clk 00:32:26]} {[%emt 00:03:32]} 20.
Bd2 {[%clk 00:47:55]} {[%emt 00:03:26]} Qd5 {[%clk 00:29:36]} {[%emt 00:03:20]}
21. Qxd5 {[%clk 00:48:02]} {[%emt 00:00:24]} Bxd5 {[%clk 00:29:21]} {[%emt
00:00:44]} 22. Re1 {[%clk 00:47:10]} {[%emt 00:01:21]} Rab8 {[%clk 00:28:31]}
{[%emt 00:01:21]} 23. Bf4 {[%clk 00:46:24]} {[%emt 00:01:16]} Rbc8 {[%clk
00:27:25]} {[%emt 00:01:35]} 24. f3 {[%clk 00:37:09]} {[%emt 00:09:47]} a5
{[%clk 00:26:33]} {[%emt 00:01:23]} 25. Re5 {[%clk 00:34:17]} {[%emt 00:03:21]}
g6 {[%clk 00:24:20]} {[%emt 00:02:42]} 26. Rae1 {[%clk 00:32:58]} {[%emt
00:01:49]} Rxe5 {[%clk 00:21:34]} {[%emt 00:03:17]} 27. Bxe5 {[%clk 00:32:46]}
{[%emt 00:00:42]} Bc4 {[%clk 00:21:49]} {[%emt 00:00:14]} 28. Bxd4 {[%clk
00:32:55]} {[%emt 00:00:21]} Bxd3 {[%clk 00:22:10]} {[%emt 00:00:09]} 29. cxd3
{[%clk 00:33:23]} {[%emt 00:00:02]} Nb5 {[%clk 00:22:05]} {[%emt 00:00:35]} 30.
Bb2 {[%clk 00:33:40]} {[%emt 00:00:13]} Rc2 {[%emt 00:00:25]} 31. Re8+ {[%clk
00:34:02]} Kh7 {[%emt 00:00:21]} 32. Rh8# {[%emt 00:00:01]} 1-0

[Event "NJSK 2026 Jeugd C"]
[Site "Helmond, Netherlands"]
[Date "2026.04.27"]
[Round "4.14"]
[White "Lalkota, Sai Pranav Tejas"]
[Black "Tkacenko, Kostia"]
[Result "1-0"]
[TimeControl "90min/40moves + 30sec/move"]
[WhiteTitle "-"]
[BlackTitle "-"]
[WhiteFideId "1087690"]
[BlackFideId "40120708"]
[WhiteElo "1830"]
[BlackElo "1552"]

1. c4 {[%clk 01:30:58]} {[%emt 00:00:01]} e5 {[%clk 01:30:47]} {[%emt
00:00:12]} 2. Nc3 {[%clk 01:31:23]} {[%emt 00:00:06]} Nf6 {[%clk 01:31:00]}
{[%emt 00:00:17]} 3. g3 {[%clk 01:31:49]} {[%emt 00:00:04]} d5 {[%clk
01:31:22]} {[%emt 00:00:08]} 4. cxd5 {[%clk 01:32:14]} {[%emt 00:00:05]} Nxd5
{[%clk 01:31:47]} {[%emt 00:00:05]} 5. Bg2 {[%clk 01:32:40]} {[%emt 00:00:05]}
Nb6 {[%clk 01:32:07]} {[%emt 00:00:10]} 6. d3 {[%clk 01:33:03]} {[%emt
00:00:07]} Nc6 {[%clk 01:31:59]} {[%emt 00:00:37]} 7. Nf3 {[%clk 01:33:28]}
{[%emt 00:00:05]} Bd6 {[%clk 01:31:02]} {[%emt 00:01:27]} 8. O-O {[%clk
01:33:38]} {[%emt 00:00:20]} O-O {[%clk 01:31:15]} {[%emt 00:00:18]} 9. Bg5
{[%clk 01:33:32]} {[%emt 00:00:36]} f6 {[%clk 01:30:48]} {[%emt 00:00:56]} 10.
Be3 {[%clk 01:33:56]} {[%emt 00:00:05]} Be6 {[%clk 01:30:22]} {[%emt 00:00:56]}
11. Rc1 {[%clk 01:31:51]} {[%emt 00:02:35]} Qd7 {[%clk 01:26:46]} {[%emt
00:04:07]} 12. Nb5 {[%clk 01:31:30]} {[%emt 00:00:51]} Nd5 {[%clk 01:25:02]}
{[%emt 00:02:13]} 13. Bd2 {[%clk 01:27:07]} {[%emt 00:04:54]} a6 {[%clk
01:23:02]} {[%emt 00:02:29]} 14. Nxd6 {[%clk 01:27:26]} {[%emt 00:00:11]} cxd6
{[%clk 01:23:26]} {[%emt 00:00:07]} 15. Qa4 {[%clk 01:26:33]} {[%emt 00:01:23]}
Nb6 {[%clk 01:13:52]} {[%emt 00:10:03]} 16. Qd1 {[%clk 01:26:35]} {[%emt
00:00:28]} d5 {[%clk 01:13:53]} {[%emt 00:00:30]} 17. e4 {[%clk 01:25:05]}
{[%emt 00:02:00]} Rad8 {[%clk 01:12:30]} {[%emt 00:01:53]} 18. Be3 {[%clk
01:22:07]} {[%emt 00:03:27]} d4 {[%clk 01:08:27]} {[%emt 00:04:33]} 19. Bd2
{[%clk 01:22:31]} {[%emt 00:00:07]} Bxa2 {[%clk 01:06:59]} {[%emt 00:01:59]} 20.
b3 {[%clk 01:20:31]} {[%emt 00:02:29]} Qf7 {[%clk 01:05:40]} {[%emt 00:01:49]}
21. Rc4 {[%clk 01:17:26]} {[%emt 00:03:35]} Nxc4 {[%clk 01:04:47]} {[%emt
00:01:23]} 22. bxc4 {[%clk 01:17:50]} {[%emt 00:00:07]} Bxc4 {[%clk 01:03:37]}
{[%emt 00:01:39]} 23. dxc4 {[%clk 01:18:13]} {[%emt 00:00:07]} Qxc4 {[%clk
01:03:52]} {[%emt 00:00:15]} 24. Qb1 {[%clk 01:18:35]} {[%emt 00:00:08]} b5
{[%clk 00:57:42]} {[%emt 00:06:40]} 25. Bh3 {[%clk 01:18:45]} {[%emt 00:00:21]}
d3 {[%clk 00:48:04]} {[%emt 00:10:07]} 26. Bg2 {[%clk 01:11:35]} {[%emt
00:07:39]} Rd6 {[%clk 00:41:30]} {[%emt 00:07:04]} 27. Rc1 {[%clk 01:11:25]}
{[%emt 00:00:40]} Qe6 {[%clk 00:40:57]} {[%emt 00:01:04]} 28. Bf1 {[%clk
01:10:21]} {[%emt 00:01:33]} Rfd8 {[%clk 00:39:14]} {[%emt 00:02:14]} 29. Ne1
{[%clk 01:10:08]} {[%emt 00:00:43]} Nd4 {[%clk 00:33:19]} {[%emt 00:06:24]} 30.
Ba5 {[%clk 01:08:45]} {[%emt 00:01:53]} d2 {[%clk 00:32:24]} {[%emt 00:01:26]}
31. Bxd2 {[%clk 01:08:42]} {[%emt 00:00:33]} Ne2+ {[%clk 00:32:20]} {[%emt
00:00:33]} 32. Bxe2 {[%clk 01:09:04]} {[%emt 00:00:08]} Rxd2 {[%clk 00:32:47]}
{[%emt 00:00:04]} 33. Bd1 {[%clk 01:08:32]} {[%emt 00:01:01]} Qb6 {[%clk
00:31:46]} {[%emt 00:01:31]} 34. Qb3+ {[%clk 01:08:02]} {[%emt 00:01:00]} Kh8
{[%clk 00:31:34]} {[%emt 00:00:42]} 35. Qf3 {[%clk 01:08:24]} {[%emt 00:00:07]}
a5 {[%clk 00:30:45]} {[%emt 00:01:20]} 36. Ng2 {[%clk 01:08:27]} {[%emt
00:00:28]} a4 {[%clk 00:30:09]} {[%emt 00:01:05]} 37. Ne3 {[%clk 01:08:52]}
{[%emt 00:00:05]} a3 {[%clk 00:28:31]} {[%emt 00:02:09]} 38. Ra1 {[%clk
01:09:13]} {[%emt 00:00:09]} Qd6 {[%clk 00:27:45]} {[%emt 00:01:16]} 39. Nd5
{[%clk 01:08:34]} {[%emt 00:01:08]} b4 {[%clk 00:27:11]} {[%emt 00:01:04]} 40.
Qe3 {[%clk 01:06:44]} {[%emt 00:02:19]} Rxd5 {[%clk 00:25:28]} {[%emt
00:02:14]} 41. exd5 {[%clk 01:07:07]} {[%emt 00:00:07]} Qxd5 {[%clk 00:25:56]}
{[%emt 00:00:03]} 42. Bb3 {[%clk 01:07:09]} {[%emt 00:00:28]} Qa8 {[%clk
00:24:58]} {[%emt 00:01:28]} 43. Qb6 {[%clk 01:07:08]} {[%emt 00:00:31]} Rb8
{[%clk 00:23:27]} {[%emt 00:02:01]} 44. Qd6 {[%clk 01:06:59]} {[%emt 00:00:38]}
Qb7 {[%clk 00:22:41]} {[%emt 00:01:16]} 45. Rc1 {[%clk 01:06:52]} {[%emt
00:00:37]} h6 {[%clk 00:14:37]} {[%emt 00:08:35]} 46. Qc7 {[%clk 01:04:04]}
{[%emt 00:03:18]} Qxc7 {[%clk 00:14:02]} {[%emt 00:01:05]} 47. Rxc7 {[%clk
01:04:29]} {[%emt 00:00:05]} Ra8 {[%clk 00:13:53]} {[%emt 00:00:39]} 48. Rc2
{[%clk 01:03:43]} {[%emt 00:01:13]} Kh7 {[%clk 00:12:58]} {[%emt 00:01:28]} 49.
Kg2 {[%clk 01:04:07]} {[%emt 00:00:06]} Kg6 {[%clk 00:13:16]} {[%emt 00:00:11]}
50. Kf3 {[%clk 01:04:31]} {[%emt 00:00:06]} Rd8 {[%clk 00:12:21]} {[%emt
00:01:18]} 51. Ke3 {[%clk 01:04:11]} {[%emt 00:00:57]} Rd4 {[%clk 00:10:10]}
{[%emt 00:02:42]} 52. Rc4 {[%clk 01:04:02]} {[%emt 00:00:38]} Rxc4 {[%clk
00:10:29]} {[%emt 00:00:12]} 53. Bxc4 {[%clk 01:04:26]} {[%emt 00:00:05]} Kf5
{[%clk 00:10:20]} {[%emt 00:00:38]} 54. Bb3 {[%clk 01:04:32]} {[%emt 00:00:20]}
g5 {[%clk 00:10:12]} {[%emt 00:00:44]} 55. h3 {[%clk 01:04:37]} {[%emt
00:00:24]} h5 {[%clk 00:08:56]} {[%emt 00:01:46]} 56. f3 {[%clk 01:04:55]}
{[%emt 00:00:12]} e4 {[%clk 00:06:23]} {[%emt 00:03:04]} 57. fxe4+ {[%clk
01:04:54]} {[%emt 00:00:30]} Ke5 {[%clk 00:06:47]} {[%emt 00:00:06]} 58. g4
{[%clk 01:05:10]} {[%emt 00:00:14]} h4 {[%clk 00:06:48]} {[%emt 00:00:29]} 59.
Ba2 {[%clk 01:05:31]} {[%emt 00:00:09]} Kd6 {[%clk 00:06:53]} {[%emt 00:00:25]}
60. Kd4 {[%clk 01:05:59]} {[%emt 00:00:03]} Kc6 {[%clk 00:06:59]} {[%emt
00:00:23]} 61. e5 {[%clk 01:06:14]} {[%emt 00:00:15]} fxe5+ {[%clk 00:07:09]}
{[%emt 00:00:21]} 62. Kxe5 {[%clk 01:06:37]} {[%emt 00:00:07]} Kc5 {[%clk
00:07:29]} {[%emt 00:00:09]} 63. Ke4 {[%clk 01:06:30]} {[%emt 00:00:37]} Kb5
{[%clk 00:07:18]} {[%emt 00:00:41]} 64. Kd5 {[%clk 01:06:52]} {[%emt 00:00:08]}
b3 {[%clk 00:07:19]} {[%emt 00:00:30]} 65. Bxb3 {[%clk 01:07:16]} {[%emt
00:00:06]} Kb4 {[%clk 00:07:48]} {[%emt 00:00:01]} 66. Ba2 {[%clk 01:07:38]}
{[%emt 00:00:08]} Kc3 {[%clk 00:08:12]} {[%emt 00:00:06]} 67. Ke5 {[%clk
01:08:01]} {[%emt 00:00:05]} Kb2 {[%clk 00:08:37]} {[%emt 00:00:07]} 68. Bd5
{[%clk 01:08:24]} {[%emt 00:00:07]} a2 {[%clk 00:08:25]} {[%emt 00:00:42]} 69.
Bxa2 {[%clk 01:08:49]} {[%emt 00:00:04]} Kxa2 {[%clk 00:08:53]} {[%emt
00:00:02]} 70. Kf5 {[%clk 01:09:13]} {[%emt 00:00:06]} Kb3 {[%clk 00:09:22]}
{[%emt 00:00:02]} 71. Kxg5 {[%clk 01:09:35]} {[%emt 00:00:08]} 1-0

[Event "NJSK 2026 Jeugd C"]
[Site "Helmond, Netherlands"]
[Date "2026.04.27"]
[Round "4.16"]
[White "Bajnath, Dhanesh"]
[Black "Ozbek, Ahmet Naim"]
[Result "0-1"]
[TimeControl "90min/40moves + 30sec/move"]
[WhiteTitle "-"]
[BlackTitle "-"]
[WhiteFideId "40104842"]
[BlackFideId "40101975"]
[WhiteElo "1889"]
[BlackElo "1869"]

1. e4 {[%clk 01:30:59]} e5 {[%clk 01:30:17]} {[%emt 00:00:43]} 2. Nf3 {[%clk
01:31:29]} {[%emt 00:00:01]} Nc6 {[%clk 01:30:42]} {[%emt 00:00:05]} 3. d4
{[%clk 01:31:57]} {[%emt 00:00:02]} exd4 {[%clk 01:31:07]} {[%emt 00:00:04]} 4.
Nxd4 {[%clk 01:32:25]} {[%emt 00:00:03]} Nf6 {[%clk 01:31:31]} {[%emt
00:00:05]} 5. Nc3 {[%clk 01:32:52]} {[%emt 00:00:03]} Nxe4 {[%clk 01:31:52]}
{[%emt 00:00:09]} 6. Nxe4 {[%clk 00:59:33]} {[%emt 00:33:49]} Qe7 {[%clk
01:32:04]} {[%emt 00:00:19]} 7. f3 {[%clk 00:45:50]} {[%emt 00:14:12]} d5
{[%clk 01:32:10]} {[%emt 00:00:25]} 8. Bb5 {[%clk 00:44:49]} {[%emt 00:01:31]}
Bd7 {[%clk 01:32:34]} {[%emt 00:00:05]} 9. O-O {[%clk 00:43:33]} {[%emt
00:01:46]} dxe4 {[%clk 01:29:38]} {[%emt 00:03:27]} 10. Re1 {[%clk 00:42:14]}
{[%emt 00:01:49]} O-O-O {[%clk 01:28:11]} {[%emt 00:01:56]} 11. Bf1 {[%clk
00:28:50]} {[%emt 00:13:55]} Nxd4 {[%clk 01:27:40]} {[%emt 00:01:02]} 12. Qxd4
{[%clk 00:29:17]} {[%emt 00:00:03]} Qc5 {[%clk 01:27:47]} {[%emt 00:00:22]} 13.
Qxc5 {[%clk 00:29:04]} {[%emt 00:00:43]} Bxc5+ {[%clk 01:28:12]} {[%emt
00:00:05]} 14. Be3 {[%clk 00:29:18]} {[%emt 00:00:16]} Bxe3+ {[%clk 01:28:25]}
{[%emt 00:00:16]} 15. Rxe3 {[%clk 00:29:47]} {[%emt 00:00:02]} exf3 {[%clk
01:28:47]} {[%emt 00:00:07]} 16. Rxf3 {[%clk 00:29:54]} {[%emt 00:00:23]} Be6
{[%clk 01:29:12]} {[%emt 00:00:06]} 17. Bd3 {[%clk 00:28:47]} {[%emt 00:01:37]}
g6 {[%clk 01:29:35]} {[%emt 00:00:07]} 18. b3 {[%clk 00:26:48]} {[%emt
00:02:29]} Rd6 {[%clk 01:29:40]} {[%emt 00:00:24]} 19. Re1 {[%clk 00:26:24]}
{[%emt 00:00:55]} Rhd8 {[%clk 01:29:26]} {[%emt 00:00:44]} 20. h3 {[%clk
00:23:43]} {[%emt 00:03:11]} c6 {[%clk 01:29:35]} {[%emt 00:00:20]} 21. Rf4
{[%clk 00:21:41]} {[%emt 00:02:33]} Rd4 {[%clk 01:29:09]} {[%emt 00:00:56]} 22.
Ree4 {[%clk 00:15:41]} {[%emt 00:06:29]} Rxe4 {[%clk 01:28:56]} {[%emt
00:00:44]} 23. Rxe4 {[%clk 00:11:31]} {[%emt 00:04:40]} Bf5 {[%clk 01:28:45]}
{[%emt 00:00:40]} 24. Rf4 {[%clk 00:08:46]} {[%emt 00:03:16]} Bxd3 {[%clk
01:28:59]} {[%emt 00:00:16]} 25. cxd3 {[%clk 00:09:15]} {[%emt 00:00:01]} Rd7
{[%clk 01:29:20]} {[%emt 00:00:09]} 26. Rf3 {[%clk 00:08:39]} {[%emt 00:01:06]}
Re7 {[%clk 01:29:24]} {[%emt 00:00:25]} 27. Kf2 {[%clk 00:09:06]} {[%emt
00:00:04]} Kd7 {[%clk 01:29:50]} {[%emt 00:00:05]} 28. Rf6 {[%clk 00:08:19]}
{[%emt 00:01:15]} Ke8 {[%clk 01:29:56]} {[%emt 00:00:25]} 29. Rf4 {[%clk
00:06:13]} {[%emt 00:02:36]} Re5 {[%clk 01:29:19]} {[%emt 00:01:07]} 30. Rb4
{[%clk 00:05:42]} {[%emt 00:01:01]} b5 {[%clk 01:27:18]} {[%emt 00:02:31]} 31.
Rd4 {[%clk 00:03:44]} {[%emt 00:02:28]} Ke7 {[%clk 01:26:54]} {[%emt 00:00:53]}
32. a4 {[%clk 00:03:24]} {[%emt 00:00:52]} a6 {[%clk 01:26:00]} {[%emt
00:01:24]} 33. Kf3 {[%clk 00:03:35]} {[%emt 00:00:18]} Rd5 {[%clk 01:22:04]}
{[%emt 00:04:25]} 34. Re4+ {[%clk 00:03:06]} {[%emt 00:01:00]} Kf6 {[%clk
01:20:34]} {[%emt 00:02:01]} 35. d4 {[%clk 00:03:16]} {[%emt 00:00:19]} bxa4
{[%clk 01:20:28]} {[%emt 00:00:36]} 36. bxa4 {[%clk 00:03:44]} {[%emt
00:00:02]} Ra5 {[%clk 01:19:53]} {[%emt 00:01:05]} 37. Re8 {[%clk 00:04:10]}
{[%emt 00:00:04]} Rxa4 {[%clk 01:20:02]} {[%emt 00:00:22]} 38. Rc8 {[%clk
00:04:36]} {[%emt 00:00:02]} Rc4 {[%clk 01:19:49]} {[%emt 00:00:43]} 39. Ra8
{[%clk 00:03:35]} {[%emt 00:01:32]} Rxd4 {[%clk 01:20:06]} {[%emt 00:00:13]} 40.
Rxa6 {[%clk 00:04:02]} {[%emt 00:00:02]} Rc4 {[%clk 01:20:22]} {[%emt
00:00:14]} 41. g4 {[%clk 00:03:57]} {[%emt 00:00:36]} Rc3+ {[%clk 01:20:37]}
{[%emt 00:00:15]} 42. Kf4 {[%clk 00:04:08]} {[%emt 00:00:18]} Rxh3 {[%clk
01:19:53]} {[%emt 00:01:14]} 43. Rxc6+ {[%clk 00:04:35]} {[%emt 00:00:21]} Kg7
{[%clk 01:20:08]} 44. Rc7 {[%clk 00:04:34]} {[%emt 00:00:29]} Ra3 {[%clk
01:20:22]} {[%emt 00:00:16]} 45. Rc4 {[%clk 00:04:04]} {[%emt 00:01:00]} Ra5
{[%clk 01:20:40]} {[%emt 00:00:12]} 46. g5 {[%clk 00:04:11]} {[%emt 00:00:23]}
h6 {[%clk 01:20:48]} {[%emt 00:00:22]} 47. gxh6+ {[%clk 00:04:33]} {[%emt
00:00:08]} Kxh6 {[%clk 01:21:14]} {[%emt 00:00:04]} 48. Kg4 {[%clk 00:04:45]}
{[%emt 00:00:18]} Ra1 {[%clk 01:21:33]} {[%emt 00:00:11]} 49. Rc6 {[%clk
00:04:52]} {[%emt 00:00:22]} Ra4+ {[%clk 01:21:47]} {[%emt 00:00:16]} 50. Kg3
{[%clk 00:05:12]} {[%emt 00:00:11]} Kg5 {[%clk 01:22:04]} {[%emt 00:00:14]} 0-1